bitfinex/quotes_SOLUSD_20251130
["timestamp","ask_amount","ask_price","bid_price","bid_amount"]
[1764518694648,3.18,138.6,138.58,0.7]
[1764518696637,5.36530029,138.6,138.57,68.81653293]
[1764518696843,5.94530029,138.6,138.57,61.6]
[1764518697538,5.94530029,138.6,138.57,62.27]
[1764518697743,5.94530029,138.6,138.57,69.48642661]
[1764518697954,5.36530029,138.6,138.57,69.48642661]
[1764518700258,5.36530029,138.6,138.58,0.67]
[1764518700942,3.18,138.59,138.58,0.67]
[1764518701152,3.18,138.59,138.57,68.81642661]
[1764518701153,5.36530029,138.59,138.57,61.6]
[1764518701461,2.18530029,138.58,138.56,0.67]
[1764518702542,27.04395043,138.59,138.56,0.67]
[1764518703166,2.18530029,138.57,138.55,7.21739074]
[1764518703461,3.18,138.56,138.55,7.21739074]
[1764518703959,3.18,138.56,138.53,7.88860567]
[1764518704134,3.76,138.56,138.53,7.21860567]
[1764518704466,25.4433508,138.56,138.53,7.88860567]
[1764518704648,24.8633508,138.56,138.53,7.21860567]
[1764518704849,24.8633508,138.56,138.54,0.67]
[1764518705159,32.08050967,138.56,138.54,0.67]
[1764518705557,2.76530029,138.55,138.51,7.21943483]
[1764518705752,10.99524521,138.55,138.52,0.67]
[1764518706736,18.21288917,138.55,138.52,0.67]
[1764518707149,2.76530029,138.54,138.51,7.21943483]
[1764518707358,3.18,138.53,138.51,7.88943483]
[1764518707763,5.36530029,138.53,138.51,7.88943483]
[1764518708657,2.18530029,138.52,138.49,8.09063648]
[1764518709355,2.18530029,138.52,138.5,0.67]
[1764518710159,2.18530029,138.52,138.49,0.2]
[1764518710351,9.40453819,138.52,138.49,0.87]
[1764518711542,2.18530029,138.52,138.5,0.67]
[1764518711741,10.99524521,138.52,138.5,0.67]
[1764518712344,18.21447292,138.52,138.5,0.67]
[1764518715069,10.99524521,138.52,138.5,0.67]
[1764518715569,18.21443911,138.52,138.5,0.67]
[1764518715866,10.99524521,138.52,138.5,0.67]
[1764518718468,3.18,138.51,138.5,0.67]
[1764518719668,5.36530029,138.51,138.5,0.67]
[1764518719867,13.16520932,138.51,138.49,0.2]
[1764518720168,2.76530029,138.5,138.49,0.2]
[1764518720370,21.25946458,138.5,138.49,0.2]
[1764518720871,18.49416429,138.5,138.49,0.2]
[1764518721675,20.67946458,138.5,138.49,0.87]
[1764518722272,20.67946458,138.5,138.49,0.2]
[1764518722569,23.85946458,138.5,138.49,0.2]
[1764518727674,7.21656924,138.57,138.5,8.80994492]
[1764518727880,21.68491813,138.57,138.55,2.18530029]
[1764518728174,2.72,138.58,138.55,2.18530029]
[1764518728476,2.72,138.58,138.56,0.69]
[1764518729776,2.72,138.58,138.56,7.90701837]
[1764518730278,2.72,138.58,138.57,0.69]
[1764518737864,3.18,138.58,138.57,0.69]
[1764518738061,7.21701837,138.59,138.57,7.90637806]
[1764518738282,3.18,138.59,138.57,7.90637806]
[1764518738582,3.18,138.59,138.58,0.69]
[1764518740090,3.18,138.59,138.58,7.90604849]
[1764518745790,3.18,138.59,138.58,7.21604849]
[1764518746791,3.18,138.59,138.58,7.90604849]
[1764518747898,5.94530029,138.59,138.57,61.6]
[1764518748570,3.18,138.59,138.57,61.6]
[1764518748785,5.36530029,138.59,138.57,61.6]
[1764518749096,5.36530029,138.59,138.56,7.90689666]
[1764518749294,12.58086262,138.59,138.56,7.90689666]
[1764518749690,23.86708397,138.6,138.56,7.21689666]
[1764518749999,3.18,138.59,138.57,2.87530029]
[1764518750490,3.18,138.59,138.58,0.69]
[1764518752796,23.86395043,138.62,138.59,7.21552781]
[1764518753092,16.888864,138.63,138.59,9.4008281]
[1764518753093,3.18,138.61,138.59,9.4008281]
[1764518753298,3.18,138.61,138.6,0.69]
[1764518754881,3.18,138.61,138.6,7.90500721]
[1764518755697,32.88246229,138.64,138.6,7.90500721]
[1764518756013,3.18,138.63,138.6,7.90500721]
[1764518757697,3.18,138.63,138.6,7.21500721]
[1764518758003,3.18,138.63,138.61,0.65]
[1764518758682,3.18,138.62,138.61,7.86448319]
[1764518762505,3.18,138.62,138.61,69.46448319]
[1764518766405,24.09918918,138.69,138.62,8.80994492]
[1764518766587,28.26121759,138.68,138.63,3.41352773]
[1764518766787,3.41352773,138.67,138.63,0.65]
[1764518767088,3.99352773,138.67,138.64,0.65]
[1764518767604,3.41352773,138.67,138.64,0.65]
[1764518767810,25.42768986,138.68,138.65,7.21240533]
[1764518768111,3.41352773,138.67,138.65,7.21240533]
[1764518768295,3.41352773,138.67,138.65,7.86240533]
[1764518769308,3.18,138.66,138.65,7.86240533]
[1764518769609,3.18,138.66,138.65,7.21240533]
[1764518770913,3.18,138.66,138.64,69.46275819]
[1764518771586,3.18,138.66,138.64,61.6]
[1764518771587,7.17352773,138.66,138.64,61.6]
[1764518771792,3.41352773,138.65,138.64,61.6]
[1764518771988,3.99352773,138.65,138.63,61.6]
[1764518772189,3.41352773,138.64,138.63,61.6]
[1764518772397,25.08747925,138.64,138.61,0.65]
[1764518772593,6.59352773,138.63,138.61,0.65]
[1764518772790,3.18,138.63,138.61,0.65]
[1764518773094,3.18,138.63,138.61,7.86448142]
[1764518773607,3.18,138.63,138.61,7.21448142]
[1764518773813,3.18,138.63,138.62,0.65]
[1764518775017,3.18,138.63,138.6,7.21500721]
[1764518775216,3.18,138.63,138.6,7.86500721]
[1764518775399,3.18,138.63,138.61,0.65]
[1764518776415,0.58,138.7,138.62,12.22347265]
[1764518776722,28.25965274,138.69,138.64,3.41352773]
[1764518776892,28.25965274,138.69,138.64,8.80994492]
[1764518777094,28.83965274,138.69,138.66,7.21188518]
[1764518777724,3.76,138.69,138.65,7.21225287]
[1764518777922,7.17352773,138.69,138.66,0.65]
[1764518778533,6.59352773,138.69,138.66,0.65]
[1764518778733,7.17352773,138.69,138.66,0.65]
[1764518779054,7.17352773,138.69,138.66,7.86165662]
[1764518780634,3.18,138.68,138.67,0.65]
[1764518782355,3.99352773,138.71,138.68,7.21084511]
[1764518782564,3.41352773,138.71,138.68,7.91084511]
[1764518782852,3.18,138.7,138.68,7.91084511]
[1764518784559,6.59352773,138.7,138.68,7.91084511]
[1764518786333,3.41352773,138.69,138.68,7.91084511]
[1764518786532,6.59352773,138.7,138.68,7.21084511]
[1764518786732,6.59352773,138.7,138.67,7.88136511]
[1764518787131,6.59352773,138.7,138.68,0.67]
[1764518787772,6.59352773,138.7,138.68,7.88070638]
[1764518788049,3.18,138.7,138.68,7.88070638]
[1764518788234,6.59352773,138.7,138.68,7.21070638]
[1764518788435,7.17352773,138.7,138.68,7.21070638]
[1764518789059,6.59352773,138.7,138.68,7.21070638]
[1764518789358,6.59352773,138.7,138.67,7.21136511]
[1764518789543,3.41352773,138.69,138.68,0.67]
[1764518790656,3.41352773,138.69,138.67,69.48136511]
[1764518791052,3.41352773,138.69,138.67,68.81136511]
[1764518791231,3.41352773,138.69,138.68,0.67]
[1764518791438,3.41352773,138.69,138.67,68.81136511]
[1764518791737,3.41352773,138.69,138.68,0.67]
[1764518793039,6.59352773,138.69,138.68,7.88084511]
[1764518794648,6.59352773,138.69,138.68,0.67]
[1764518795873,6.59352773,138.69,138.68,7.88084511]
[1764518797565,3.18,138.69,138.68,7.88084511]
[1764518801481,3.41352773,138.7,138.68,7.88084511]
[1764518801655,3.18,138.69,138.68,7.88084511]
[1764518801850,3.18,138.69,138.68,7.21084511]
[1764518802159,3.18,138.69,138.68,7.88084511]
[1764518805172,6.59352773,138.7,138.69,0.67]
[1764518805689,3.18,138.7,138.69,0.67]
[1764518806281,21.53299202,138.74,138.7,7.20980533]
[1764518806282,0.68,138.74,138.7,7.20980533]
[1764518806592,3.41352773,138.71,138.7,7.20980533]
[1764518806759,3.41352773,138.71,138.7,7.87980533]
[1764518807284,3.41352773,138.72,138.7,7.87980533]
[1764518807488,3.18,138.71,138.7,7.87980533]
[1764518807790,3.18,138.71,138.7,7.20980533]
[1764518808086,0.68,138.74,138.7,7.20980533]
[1764518808275,6.59352773,138.73,138.71,0.67]
[1764518809369,3.41352773,138.72,138.69,25.9052103]
[1764518809576,3.99352773,138.72,138.69,25.9052103]
[1764518809974,3.41352773,138.72,138.7,0.67]
[1764518810492,3.41352773,138.72,138.69,7.88032518]
[1764518811690,3.99352773,138.71,138.67,71.07994492]
[1764518811902,3.18,138.7,138.68,0.67]
[1764518812075,6.59352773,138.7,138.68,0.67]
[1764518813368,7.17352773,138.7,138.67,68.81120885]
[1764518813601,6.59352773,138.7,138.67,69.48120885]
[1764518813972,6.59352773,138.7,138.68,0.67]
[1764518814304,3.18,138.7,138.68,0.67]
[1764518814491,3.18,138.7,138.67,68.81120885]
[1764518814492,2.18260693,138.69,138.67,62.27]
[1764518815593,10.96994375,138.7,138.67,0.67]
[1764518815792,13.15255068,138.7,138.67,0.67]
[1764518816881,2.18260693,138.69,138.67,0.67]
[1764518818899,2.18260693,138.69,138.65,7.21240533]
[1764518819089,2.18260693,138.69,138.66,0.69]
[1764518819816,9.39318291,138.69,138.66,0.69]
[1764518819980,2.18260693,138.68,138.66,0.69]
[1764518820307,3.18,138.67,138.66,0.69]
[1764518825802,7.20986727,138.7,138.66,7.90162665]
[1764518826004,3.18,138.69,138.66,7.90162665]
[1764518826308,3.18,138.69,138.67,0.69]
[1764518830523,5.36260693,138.69,138.67,0.69]
[1764518832517,5.36260693,138.69,138.66,68.81162665]
[1764518832518,2.18260693,138.68,138.66,61.6]
[1764518832818,2.18260693,138.68,138.66,62.29]
[1764518834221,2.18260693,138.68,138.66,61.6]
[1764518834535,2.76260693,138.68,138.66,61.6]
[1764518834902,2.18260693,138.68,138.66,62.29]
[1764518835222,2.18260693,138.68,138.65,7.21229077]
[1764518835223,2.18260693,138.67,138.64,0.69]
[1764518835424,2.18260693,138.65,138.62,0.69]
[1764518835629,5.36260693,138.64,138.61,0.28432314]
[1764518835808,3.18,138.64,138.62,0.69]
[1764518836434,3.18,138.64,138.62,7.9035119]
[1764518836801,3.18,138.64,138.63,0.69]
[1764518838115,3.18,138.64,138.62,0.69]
[1764518838310,3.18,138.64,138.61,0.69]
[1764518838311,2.18260693,138.63,138.61,0.69]
[1764518838628,10.9729916,138.64,138.61,0.69]
[1764518838629,13.15559853,138.64,138.61,0.69]
[1764518839728,13.15559853,138.64,138.56,61.6]
[1764518839729,2.18260693,138.62,138.56,61.6]
[1764518839918,2.18260693,138.6,138.57,9.49994492]
[1764518840119,5.36260693,138.61,138.57,9.49994492]
[1764518840314,5.36260693,138.61,138.58,0.69]
[1764518841615,5.94260693,138.61,138.58,7.90604428]
[1764518842630,2.18260693,138.6,138.58,0.69]
[1764518842930,2.18260693,138.59,138.57,0.69]
[1764518843134,3.18,138.58,138.57,0.69]
[1764518844036,3.18,138.58,138.56,0.69]
[1764518844234,5.36260693,138.58,138.56,0.69]
[1764518845730,3.18,138.58,138.56,0.69]
[1764518851633,8.80994492,138.61,138.56,7.90672005]
[1764518851840,2.18260693,138.59,138.56,0.69]
[1764518852235,2.76260693,138.59,138.56,0.69]
[1764518852541,2.18260693,138.58,138.56,0.69]
[1764518853045,3.18,138.57,138.55,61.6]
[1764518853237,3.18,138.57,138.55,62.28]
[1764518853543,2.18260693,138.56,138.54,61.6]
[1764518853743,9.4002179,138.55,138.51,0.68]
[1764518853946,5.36260693,138.54,138.52,0.68]
[1764518854447,2.18260693,138.53,138.5,0.68]
[1764518854743,2.18260693,138.53,138.49,61.8]
[1764518854744,2.18260693,138.52,138.51,0.68]
[1764518855046,2.18260693,138.53,138.51,0.68]
[1764518855540,5.36260693,138.54,138.51,0.68]
[1764518856265,2.18260693,138.53,138.51,0.68]
[1764518856443,5.36260693,138.54,138.51,0.68]
[1764518857247,2.18260693,138.53,138.51,0.68]
[1764518858446,9.9812786,138.53,138.49,0.88]
[1764518858630,9.9812786,138.53,138.5,0.68]
[1764518858631,2.18260693,138.52,138.5,0.68]
[1764518859431,5.94260693,138.51,138.49,0.2]
[1764518859642,2.18260693,138.5,138.49,0.2]
[1764518859843,2.18260693,138.51,138.49,0.88]
[1764518860148,3.18,138.5,138.49,0.88]
[1764518863048,5.36260693,138.5,138.49,0.2]
[1764518864446,13.16282353,138.5,138.49,0.2]
[1764518869562,34.86185792,138.5,138.49,0.2]
[1764518872752,9.40282353,138.5,138.49,0.2]
[1764518872949,12.58282353,138.5,138.49,0.2]
[1764518874334,13.16282353,138.5,138.49,0.2]
[1764518874531,16.05581886,138.5,138.49,0.2]
[1764518875261,12.58282353,138.5,138.49,0.2]
[1764518876366,13.82106732,138.5,138.49,0.2]
[1764518876767,14.40106732,138.5,138.49,0.2]
[1764518876952,17.29406265,138.5,138.49,0.2]
[1764518877265,14.40106732,138.5,138.49,0.2]
[1764518879366,13.82106732,138.5,138.49,0.2]
[1764518881150,10.4002166,138.5,138.49,0.2]
[1764518881350,13.82106732,138.5,138.49,0.2]
[1764518882267,16.308864,138.51,138.49,0.89]
[1764518882459,16.308864,138.51,138.5,0.69]
[1764518882460,3.18,138.51,138.5,0.69]
[1764518882764,6.60085072,138.51,138.49,0.89]
[1764518882969,6.60085072,138.51,138.5,0.69]
[1764518883548,3.18,138.51,138.5,0.69]
[1764518883748,6.60085072,138.51,138.5,0.69]
[1764518885672,3.18,138.51,138.5,0.69]
[1764518885851,6.60085072,138.51,138.49,0.2]
[1764518886057,6.60085072,138.51,138.49,0.89]
[1764518886580,3.42085072,138.5,138.49,0.2]
[1764518888575,10.64076937,138.51,138.49,0.89]
[1764518888777,3.18,138.5,138.49,0.89]
[1764518888983,3.18,138.5,138.49,0.2]
[1764518889484,3.18,138.5,138.49,0.89]
[1764518895090,19.72971472,138.51,138.49,0.89]
[1764518895263,3.18,138.5,138.49,0.2]
[1764518895460,3.18,138.5,138.49,7.42073795]
[1764518895759,3.18,138.5,138.49,8.11073795]
[1764518905599,3.18,138.51,138.49,8.11073795]
[1764518905804,3.18,138.51,138.49,7.42073795]
[1764518905995,6.60085072,138.51,138.49,8.13073795]
[1764518906599,6.60085072,138.51,138.5,0.71]
[1764518906900,3.18,138.51,138.5,0.71]
[1764518907479,10.63968105,138.53,138.5,0.71]
[1764518907685,3.18,138.52,138.5,0.71]
[1764518908614,23.52719798,138.54,138.5,7.93018925]
[1764518908814,3.18,138.53,138.5,7.93018925]
[1764518908989,3.18,138.53,138.51,0.71]
[1764518910216,21.69118976,138.57,138.51,72.95053011]
[1764518910514,24.87118976,138.57,138.54,3.42085072]
[1764518910713,24.87118976,138.57,138.55,3.42085072]
[1764518911081,3.18,138.57,138.56,0.66]
[1764518912015,3.18,138.57,138.56,7.87709006]
[1764518914934,10.63600255,138.6,138.56,7.87709006]
[1764518915135,11.21600255,138.6,138.57,0.66]
[1764518915311,3.18,138.59,138.57,0.66]
[1764518915510,6.60085072,138.59,138.56,0.66]
[1764518918660,6.60085072,138.59,138.56,7.87701528]
[1764518919156,6.60085072,138.59,138.57,0.66]
[1764518921062,3.18,138.59,138.57,0.66]
[1764518923142,6.60085072,138.59,138.57,0.66]
[1764518925961,4.00085072,138.58,138.55,69.47751248]
[1764518926360,3.42085072,138.58,138.55,69.47751248]
[1764518926547,3.42085072,138.58,138.55,68.81751248]
[1764518926744,3.42085072,138.58,138.56,0.66]
[1764518927560,13.81665111,138.59,138.56,0.66]
[1764518927766,3.18,138.58,138.56,0.66]
[1764518930247,3.18,138.58,138.56,7.8770782]
[1764518931257,3.18,138.58,138.56,0.66]
[1764518932981,3.18,138.58,138.56,7.87701943]
[1764518933384,3.18,138.58,138.57,0.66]
[1764518940580,3.18,138.58,138.57,7.87633868]
[1764518942109,3.18,138.59,138.57,7.87633868]
[1764518942311,3.18,138.59,138.58,0.67]
[1764518942810,2.18614156,138.61,138.58,62.27]
[1764518942989,3.18,138.61,138.58,64.45614156]
[1764518943182,3.18,138.61,138.59,0.67]
[1764518944104,3.18,138.61,138.59,7.88540345]
[1764518944493,3.18,138.61,138.6,0.67]
[1764518946209,25.70811419,138.64,138.6,7.88494227]
[1764518946509,3.18,138.61,138.6,7.88494227]
[1764518946707,16.308864,138.64,138.6,9.40108383]
[1764518947014,19.488864,138.64,138.6,9.40108383]
[1764518947311,19.488864,138.64,138.61,0.67]
[1764518948506,19.488864,138.64,138.61,7.883977]
[1764518948507,22.25500556,138.64,138.61,7.883977]
[1764518948697,2.18614156,138.63,138.61,7.213977]
[1764518949205,22.25500556,138.64,138.61,7.883977]
[1764518949408,2.18614156,138.63,138.61,7.883977]
[1764518950091,2.18614156,138.63,138.61,0.67]
[1764518950291,29.46805541,138.64,138.61,0.67]
[1764518950606,2.18614156,138.63,138.6,7.21478218]
[1764518950805,2.18614156,138.63,138.61,0.67]
[1764518951104,2.18614156,138.63,138.59,8.80994492]
[1764518951309,2.18614156,138.63,138.61,0.67]
[1764518951805,27.28191385,138.64,138.59,0.67]
[1764518951806,2.18614156,138.62,138.59,0.67]
[1764518952011,2.18614156,138.62,138.58,0.67]
[1764518952012,5.36614156,138.61,138.58,0.67]
[1764518952212,5.36614156,138.61,138.59,0.67]
[1764518952721,5.36614156,138.61,138.58,62.27]
[1764518953024,5.36614156,138.61,138.58,69.48599268]
[1764518953717,5.36614156,138.61,138.59,0.67]
[1764518956208,3.18,138.61,138.59,0.67]
[1764518960828,3.18,138.61,138.59,7.88543677]
[1764518961006,3.18,138.61,138.6,0.67]
[1764518970117,16.308864,138.64,138.6,10.07114877]
[1764518970323,3.18,138.64,138.6,71.67114877]
[1764518970630,2.18614156,138.66,138.61,2.84614156]
[1764518970839,3.18,138.66,138.62,10.99608648]
[1764518971014,2.18614156,138.68,138.63,2.18614156]
[1764518971217,5.36614156,138.68,138.63,2.84614156]
[1764518971433,5.36614156,138.68,138.64,0.66]
[1764518972032,5.36614156,138.68,138.64,7.87245251]
[1764518972237,18.49500556,138.65,138.62,7.87391529]
[1764518972421,3.18,138.64,138.62,7.87391529]
[1764518973835,3.18,138.64,138.59,79.9220911]
[1764518973836,5.36614156,138.64,138.59,81.82390952]
[1764518974033,2.18614156,138.63,138.6,0.66]
[1764518975048,16.308864,138.65,138.6,7.87452234]
[1764518975222,5.36614156,138.64,138.6,7.87452234]
[1764518975542,2.18614156,138.63,138.61,0.66]
[1764518976047,5.36614156,138.64,138.61,0.66]
[1764518976346,12.57915856,138.64,138.61,0.66]
[1764518976841,2.18614156,138.63,138.6,0.66]
[1764518978042,10.973017,138.64,138.6,0.66]
[1764518978229,2.18614156,138.63,138.6,0.66]
[1764518980251,9.3996843,138.63,138.6,0.66]
[1764518984541,2.18614156,138.62,138.6,0.66]
[1764518985448,5.36614156,138.61,138.59,61.6]
[1764518985632,5.36614156,138.61,138.59,0.66]
[1764518986645,2.18614156,138.6,138.58,69.4758341]
[1764518989035,5.36614156,138.6,138.58,69.4758341]
[1764518989443,5.36614156,138.6,138.58,7.8758341]
[1764518990245,5.36614156,138.6,138.57,7.87633768]
[1764518990246,5.94614156,138.6,138.57,7.87633768]
[1764518990946,2.18614156,138.59,138.57,7.87633768]
[1764518991825,2.18614156,138.59,138.57,0.66]
[1764518997056,2.18614156,138.6,138.57,7.87616045]
[1764518997265,3.18,138.59,138.58,0.68]
[1764518997872,5.36614156,138.6,138.58,0.68]
[1764518998152,3.18,138.6,138.58,0.68]
[1764518998528,6.59490925,138.6,138.58,0.68]
[1764518999256,3.18,138.6,138.58,0.68]
[1764519002556,6.59490925,138.6,138.58,0.68]
[1764519002852,3.18,138.61,138.58,7.89578473]
[1764519003052,6.59490925,138.61,138.58,7.89578473]
[1764519003355,3.41490925,138.6,138.57,68.81636747]
[1764519003532,3.41490925,138.6,138.58,0.68]
[1764519003933,6.59490925,138.61,138.58,0.68]
[1764519004455,13.80952253,138.61,138.58,0.68]
[1764519005656,6.59490925,138.61,138.58,7.89569879]
[1764519005954,6.59490925,138.61,138.59,0.68]
[1764519006255,6.59490925,138.61,138.58,7.89569879]
[1764519008265,6.59490925,138.61,138.59,0.68]
[1764519009659,3.18,138.61,138.59,0.68]
[1764519010184,3.18,138.61,138.59,7.8955105]
[1764519011273,3.18,138.61,138.59,7.2155105]
[1764519011464,3.41490925,138.62,138.6,0.68]
[1764519011765,3.18,138.61,138.6,0.68]
[1764519012148,3.18,138.61,138.59,7.8955105]
[1764519012347,3.18,138.61,138.6,0.68]
[1764519016172,10.62852916,138.63,138.6,7.89489184]
[1764519016370,3.41490925,138.63,138.6,7.89489184]
[1764519016672,3.41490925,138.63,138.61,0.68]
[1764519017372,3.41490925,138.64,138.61,62.28]
[1764519017575,3.41490925,138.64,138.61,0.68]
[1764519017762,6.59490925,138.63,138.61,0.68]
[1764519020963,3.18,138.63,138.61,7.89437941]
[1764519021164,7.21292624,138.64,138.62,0.68]
[1764519021369,3.18,138.64,138.62,0.68]
[1764519021870,3.18,138.64,138.62,7.8934554]
[1764519022074,3.18,138.64,138.62,70.5934554]
[1764519022271,3.18,138.64,138.63,0.68]
[1764519025090,16.308864,138.66,138.64,7.21292556]
[1764519025380,3.18,138.65,138.64,7.21292556]
[1764519025584,3.18,138.65,138.64,7.88292556]
[1764519025768,3.18,138.65,138.63,69.91328377]
[1764519025952,3.18,138.65,138.63,70.58328377]
[1764519026158,3.18,138.65,138.64,0.67]
[1764519028782,3.18,138.65,138.63,70.58328377]
[1764519029288,6.59490925,138.65,138.63,70.58328377]
[1764519031060,18.99861813,138.66,138.63,7.88328377]
[1764519031382,3.18,138.65,138.63,7.88328377]
[1764519035390,3.18,138.65,138.64,0.67]
[1764519035887,3.18,138.65,138.63,7.21328377]
[1764519036068,3.18,138.65,138.63,7.88328377]
[1764519036786,3.18,138.65,138.64,0.67]
[1764519036974,21.67082024,138.67,138.65,7.21240533]
[1764519037176,3.18,138.66,138.65,7.21240533]
[1764519037494,3.18,138.66,138.65,7.88240533]
[1764519039487,16.308864,138.68,138.65,7.88240533]
[1764519039788,3.18,138.69,138.66,4.08490925]
[1764519039968,3.18,138.69,138.66,0.67]
[1764519040174,3.18,138.69,138.67,0.67]
[1764519041081,6.59490925,138.69,138.67,0.67]
[1764519041896,3.18,138.69,138.67,0.67]
[1764519045598,6.59490925,138.69,138.67,0.67]
[1764519049202,3.18,138.69,138.67,0.67]
[1764519049387,3.18,138.69,138.67,7.88109836]
[1764519049783,3.18,138.69,138.68,0.67]
[1764519050776,3.18,138.69,138.67,62.7]
[1764519050777,6.59490925,138.69,138.67,62.7]
[1764519051303,6.59490925,138.69,138.67,63.37]
[1764519051594,13.80524381,138.69,138.67,63.37]
[1764519052396,10.39033456,138.69,138.67,63.37]
[1764519052701,13.80524381,138.69,138.67,63.37]
[1764519053699,33.197728,138.7,138.67,69.91131506]
[1764519053900,3.18,138.69,138.68,0.67]
[1764519056183,7.17490925,138.69,138.65,0.71]
[1764519056383,3.41490925,138.68,138.65,0.71]
[1764519056589,3.18,138.67,138.65,0.71]
[1764519058087,3.18,138.67,138.65,11.33693392]
[1764519058286,3.18,138.67,138.66,0.71]
[1764519059606,3.18,138.67,138.66,7.92188518]
[1764519062745,18.03308365,138.7,138.67,8.80994492]
[1764519063007,3.18,138.71,138.68,0.71]
[1764519063808,3.18,138.71,138.68,7.92049506]
[1764519064004,3.18,138.71,138.69,0.71]
[1764519066310,5.36270215,138.71,138.68,7.21049506]
[1764519066610,5.94270215,138.71,138.68,7.92049506]
[1764519067011,2.18270215,138.69,138.67,69.91116291]
[1764519067191,16.308864,138.72,138.68,2.89270215]
[1764519067511,3.18,138.71,138.68,2.89270215]
[1764519067813,3.18,138.71,138.69,0.71]
[1764519072320,3.18,138.71,138.69,7.92014178]
[1764519072801,3.18,138.71,138.7,0.71]
[1764519073620,3.18,138.71,138.69,7.21014178]
[1764519073814,3.18,138.71,138.69,7.92014178]
[1764519074421,3.18,138.71,138.69,7.21014178]
[1764519074719,3.18,138.71,138.7,0.71]
[1764519076796,16.308864,138.73,138.72,0.71]
[1764519076993,16.308864,138.73,138.72,7.91876585]
[1764519077215,0.1,138.74,138.72,7.91876585]
[1764519077413,0.1,138.74,138.73,0.71]
[1764519078307,0.1,138.74,138.73,9.51994492]
[1764519078898,0.1,138.74,138.73,16.72819115]
[1764519079098,0.1,138.74,138.73,0.71]
[1764519083913,0.1,138.74,138.73,7.91824623]
[1764519093320,0.1,138.74,138.73,70.61824623]
[1764519093632,0.1,138.74,138.73,69.90824623]
[1764519094132,0.1,138.74,138.73,70.57824623]
[1764519098332,0.1,138.74,138.73,79.38819115]
[1764519098533,0.1,138.74,138.73,81.85521644]
[1764519099112,0.1,138.75,138.74,9.09426806]
[1764519099326,0.1,138.75,138.74,15.12697021]
[1764519099809,0.1,138.75,138.74,22.33469689]
[1764519100325,0.1,138.75,138.74,85.03469689]
[1764519104336,0.1,138.75,138.74,69.90772668]
[1764519108145,0.1,138.75,138.74,7.20772668]
[1764519111716,0.1,138.75,138.73,7.20823716]
[1764519111921,0.1,138.75,138.73,7.87823716]
[1764519114143,0.1,138.75,138.73,70.57823716]
[1764519118948,0.1,138.75,138.74,7.87772668]
[1764519119530,0.1,138.75,138.74,81.85469689]
[1764519120429,0.1,138.75,138.74,83.07768583]
[1764519123638,0.1,138.75,138.74,85.96400108]
[1764519123832,0.1,138.75,138.74,82.55830999]
[1764519124057,0.1,138.75,138.74,83.07768583]
[1764519124861,0.1,138.75,138.74,85.96400108]
[1764519126139,0.1,138.75,138.74,86.68477374]
[1764519130451,1e-08,138.75,138.74,194.49046483]
[1764519130655,1e-08,138.77,138.75,9.76426806]
[1764519130844,1e-08,138.77,138.76,15.67995915]
[1764519131044,1e-08,138.77,138.76,16.34995915]
[1764519131240,1e-08,138.78,138.77,9.09426806]
[1764519131440,1e-08,138.78,138.77,9.76426806]
[1764519131846,1e-08,138.78,138.77,19.85591895]
[1764519132076,1e-08,138.79,138.78,12.49995915]
[1764519132280,1e-08,138.79,138.78,79.04995915]
[1764519132639,1e-08,138.79,138.78,81.93502532]
[1764519133132,1e-08,138.79,138.78,35.54388932]
[1764519134137,1e-08,138.79,138.78,42.74953854]
[1764519135076,1e-08,138.79,138.78,18.90066031]